lending/lending_fUSD_20260330
["ID","MTS","AMOUNT","RATE_DAILY","PERIOD"]
[419121900,1774903818271,-450.3362068,0.00046684,120]
[419121901,1774903818341,-212.9056227,0.00046684,120]
[419121902,1774903818414,-1498.28301617,0.00046684,120]
[419121903,1774903818485,-500.0,0.00046684,120]
[419121904,1774903818558,-500.0,0.00046684,120]
[419121905,1774903818628,-3396.07002205,0.00046684,120]
[419121906,1774903818699,-500.0,0.00046684,120]
[419121907,1774903818767,-500.0,0.00046684,120]
[419121908,1774903818833,-572.72757784,0.00046684,60]
[419121909,1774903818899,-2312.22119215,0.00046684,30]
[419121910,1774903818967,-500.0,0.00046684,120]
[419121911,1774903819035,-500.0,0.00046684,120]
[419121912,1774903819101,-317.75595266,0.00046684,120]
[419121913,1774903819404,-269.22774326,0.00046684,120]
[419121914,1774903819477,-257.1816048,0.00046684,30]
[419121915,1774903819547,-234.63809453,0.00046684,120]
[419121916,1774903819614,-209.18088161,0.00046684,120]
[419121917,1774903819683,-500.0,0.00046684,60]
[419121918,1774903819749,-500.0,0.00046684,60]
[419121919,1774903819817,-500.0,0.00046684,60]
[419121920,1774903819883,-553.12342995,0.00046684,60]
[419121921,1774903819949,-421.1986578,0.00046684,120]
[419121922,1774903820013,-311.07781597,0.00046684,30]
[419121923,1774903820077,-195.0303097,0.00046684,30]
[419121924,1774903820139,-1598.36770762,0.00046684,30]
[419121925,1774903820205,-500.0,0.00046684,30]
[419121926,1774903820273,-500.0,0.00046684,30]
[419121927,1774903820341,-500.0,0.00046684,30]
[419121928,1774903820409,-500.0,0.00046684,30]
[419121929,1774903820475,-500.0,0.00046684,30]
[419121930,1774903820541,-500.0,0.00046684,30]
[419121931,1774903820609,-500.0,0.00046684,30]
[419121932,1774903820679,-500.0,0.00046684,30]
[419121933,1774903820749,-500.0,0.00046684,30]
[419121934,1774903820817,-500.0,0.00046684,30]
[419121935,1774903820887,-500.0,0.00046684,30]
[419121936,1774903820953,-500.0,0.00046684,30]
[419121937,1774903821022,-500.0,0.00046684,30]
[419121938,1774903821088,-500.0,0.00046684,30]
[419121939,1774903821157,-500.0,0.00046684,30]
[419121940,1774903821227,-500.0,0.00046684,30]
[419121941,1774903821298,-247.53420341,0.00046684,30]
[419121942,1774903821367,-377.65202181,0.00046684,120]
[419121943,1774903821435,-1799.73960097,0.00046684,60]
[419121944,1774903821501,-271.98920628,0.00046684,120]
[419121945,1774903821570,-385.65990252,0.00046684,30]
[419121946,1774903821639,-259.32649327,0.00046684,120]
[419121947,1774903821708,-3102.97608264,0.00046684,30]
[419121948,1774903821775,-1330.0499828,0.00046684,30]
[419121949,1774903821843,-288.5207438,0.00046684,30]
[419121950,1774903821910,-541.2868235,0.00046684,30]
[419121951,1774903821976,-191.11405746,0.00046684,120]
[419121952,1774903822043,-1444.89307356,0.00046684,30]
[419121953,1774903822108,-911.58681528,0.00046684,30]
[419121954,1774903822178,-273.67055724,0.00046684,120]
[419121955,1774903822246,-201.05138941,0.00046684,60]
[419121956,1774903822314,-4752.8420138,0.00046684,30]
[419121957,1774903822380,-2596.96964549,0.00046684,30]
[419121958,1774903822446,-466.90800378,0.00046684,30]
[419121959,1774903822513,-2949.92432611,0.00046684,120]
[419121960,1774903822583,-481.90128764,0.00046684,120]
[419121961,1774903822651,-3462.57629224,0.00046684,120]
[419121962,1774903822721,-526.34169739,0.00046684,120]
[419121963,1774903822786,-1493.09437223,0.00046684,60]
[419121964,1774903822852,-183.77112103,0.00046684,120]
[419121965,1774903822919,-176.43040609,0.00046684,30]
[419121966,1774903822987,-4121.73206472,0.00046684,30]
[419121967,1774903823054,-1450.29451865,0.00046684,120]
[419121968,1774903823122,-2819.06984804,0.00046684,120]
[419121969,1774903823192,-224.02299642,0.00046684,30]
[419121970,1774903823262,-426.22981264,0.00046684,30]
[419121971,1774903823334,-3838.24282283,0.00046684,49]
[419121972,1774903823403,-165.33377387,0.00046684,30]
[419121973,1774903823474,-256.2049656,0.00046684,120]
[419121974,1774903823544,-200.19140525,0.00046684,120]
[419121975,1774903823616,-241.70120565,0.00046684,30]
[419121976,1774903823687,-682.11844444,0.00046684,30]
[419121977,1774903823755,-279.31067735,0.00046684,120]
[419121978,1774903823824,-646.22399674,0.00046684,30]
[419121979,1774903823897,-490.2938233,0.00046684,120]
[419121980,1774903823970,-486.23813397,0.00046684,120]
[419121981,1774903824040,-278.81918305,0.00046684,120]
[419121982,1774903824109,-502.66907355,0.00046684,30]
[419121983,1774903824178,-500.0,0.00046684,120]
[419121984,1774903824249,-357.22221,0.00046684,60]
[419121985,1774903824321,-357.22221,0.00046684,60]
[419121986,1774903824392,-174.36963137,0.00046684,30]
[419121987,1774903824462,-2796.40846917,0.00046684,30]
[419121988,1774903824533,-246.81884429,0.00046684,120]
[419121989,1774903824603,-1562.29209786,0.00046684,35]
[419121990,1774903824674,-2137.02892248,0.00046684,120]
[419121991,1774903824745,-357.22221,0.00046684,60]
[419121992,1774903824816,-6926.61467267,0.00046684,30]
[419121993,1774903824883,-357.22221,0.00046684,60]
[419121994,1774903824952,-357.22221,0.00046684,60]
[419121995,1774903825021,-5552.45295911,0.00046684,30]
[419121996,1774903825090,-920.27298502,0.00046684,45]
[419121997,1774903825158,-2392.0926361,0.00046684,120]
[419121998,1774903825225,-657.02140831,0.00046684,30]
[419121999,1774903825294,-2085.37898824,0.00046684,30]
[419122000,1774903825363,-263.15945031,0.00046684,120]
[419122001,1774903825432,-500.0,0.00046684,120]
[419122002,1774903825503,-500.0,0.00046684,120]
[419122003,1774903825574,-489.98590961,0.00046684,120]
[419122004,1774903825647,-3489.05013542,0.00046684,30]
[419122005,1774903825718,-500.0,0.00046684,120]
[419122006,1774903825787,-212.04806428,0.00046684,120]
[419122007,1774903825858,-500.0,0.00046684,120]
[419122008,1774903826310,-340.11730394,0.00046684,30]
[419122009,1774903826383,-489.71683012,0.00046684,30]
[419122010,1774903826456,-500.0,0.00046684,120]
[419122011,1774903826526,-158.45091285,0.00046684,120]
[419122012,1774903826596,-500.0,0.00046684,120]
[419122013,1774903826665,-470.26673465,0.00046684,60]
[419122014,1774903826739,-500.0,0.00046684,120]
[419122015,1774903826808,-284.62509715,0.00046684,120]
[419122016,1774903826877,-438.46903167,0.00046684,60]
[419122017,1774903826948,-961.97918187,0.00046684,30]
[419122018,1774903827017,-5118.0104616,0.00046684,60]
[419122019,1774903827087,-365.71296916,0.00046684,90]
[419122020,1774903827152,-420.50716882,0.00046684,30]
[419122021,1774903827219,-29184.57141787,0.00046684,31]
[419122022,1774903827288,-205.60960198,0.00046684,120]
[419122023,1774903827356,-549.0,0.00046684,30]
[419122024,1774903827426,-5701.93600853,0.00046684,30]
[419122025,1774903827492,-2607.05711437,0.00046684,120]
[419122026,1774903827560,-4041.32408201,0.00046684,30]
[419122027,1774903827628,-500.0,0.00046684,120]
[419122028,1774903827697,-398.98579748,0.00046684,120]
[419122029,1774903827765,-707.53,0.00046684,30]
[419122030,1774903827834,-707.53,0.00046684,30]
[419122031,1774903827906,-707.53,0.00046684,30]
[419122032,1774903827972,-707.53,0.00046684,30]
[419122033,1774903828041,-707.53,0.00046684,30]
[419122034,1774903828108,-707.53,0.00046684,30]
[419122035,1774903828177,-707.53,0.00046684,30]
[419122036,1774903828245,-707.53,0.00046684,30]
[419122037,1774903828321,-707.53,0.00046684,30]
[419122038,1774903828394,-707.53,0.00046684,30]
[419122039,1774903828467,-707.53,0.00046684,30]
[419122040,1774903828537,-707.53,0.00046684,30]
[419122041,1774903828611,-707.53,0.00046684,30]
[419122042,1774903828685,-500.0,0.00046684,120]
[419122043,1774903828757,-707.53,0.00046684,30]
[419122044,1774903828824,-315.17296645,0.00046684,120]
[419122045,1774903828894,-707.53,0.00046684,30]
[419122046,1774903828963,-707.53,0.00046684,30]
[419122047,1774903829034,-707.53,0.00046684,30]
[419122048,1774903829103,-707.53,0.00046684,30]
[419122049,1774903829175,-707.53,0.00046684,30]
[419122050,1774903829250,-707.53,0.00046684,30]
[419122051,1774903829320,-707.53,0.00046684,30]
[419122052,1774903829395,-707.53,0.00046684,30]
[419122053,1774903829469,-707.53,0.00046684,30]
[419122054,1774903829541,-707.67519197,0.00046684,30]
[419122055,1774903829613,-500.0,0.00046684,120]
[419122056,1774903829687,-164.71888862,0.00046684,120]
[419122057,1774903829755,-153.63924736,0.00046684,120]
[419122058,1774903829822,-500.0,0.00046684,60]
[419122059,1774903829886,-500.0,0.00046684,60]
[419122060,1774903829952,-500.0,0.00046684,60]
[419122061,1774903830016,-500.0,0.00046684,60]
[419122062,1774903830081,-500.0,0.00046684,60]
[419122063,1774903830146,-500.0,0.00046684,60]
[419122064,1774903830211,-500.0,0.00046684,60]
[419122065,1774903830292,-500.0,0.00046684,60]
[419122066,1774903830364,-500.0,0.00046684,60]
[419122067,1774903830433,-500.0,0.00046684,60]
[419122068,1774903830503,-500.0,0.00046684,60]
[419122069,1774903830574,-500.0,0.00046684,60]
[419122070,1774903830644,-500.0,0.00046684,60]
[419122071,1774903830712,-500.0,0.00046684,60]
[419122072,1774903830777,-500.0,0.00046684,60]
[419122073,1774903830841,-626.43,0.00046684,60]
[419122074,1774903830907,-900.0,0.00046684,61]
[419122075,1774903830972,-900.0,0.00046684,61]
[419122076,1774903831034,-900.0,0.00046684,61]
[419122077,1774903831098,-900.0,0.00046684,61]
[419122078,1774903831164,-900.0,0.00046684,61]
[419122079,1774903831232,-900.0,0.00046684,61]
[419122080,1774903831300,-900.0,0.00046684,61]
[419122081,1774903831372,-915.61904212,0.00046684,61]
[419122082,1774903831443,-900.0,0.00046684,61]
[419122083,1774903831510,-900.0,0.00046684,61]
[419122084,1774903831581,-900.0,0.00046684,61]
[419122085,1774903831652,-900.0,0.00046684,61]
[419122086,1774903831719,-900.0,0.00046684,61]
[419122087,1774903831792,-900.0,0.00046684,61]
[419122090,1774903832121,-900.0,0.00046684,61]
[419122091,1774903832190,-900.0,0.00046684,61]
[419122092,1774903832257,-900.0,0.00046684,61]
[419122093,1774903832323,-900.0,0.00046684,61]
[419122094,1774903832391,-900.0,0.00046684,61]
[419122095,1774903832459,-900.0,0.00046684,61]
[419122097,1774903832527,-900.0,0.00046684,61]
[419122102,1774903832600,-900.0,0.00046684,61]
[419122110,1774903832668,-900.0,0.00046684,61]
[419122118,1774903832736,-900.0,0.00046684,61]
[419122126,1774903832801,-900.0,0.00046684,61]
[419122134,1774903832865,-900.0,0.00046684,61]
[419122140,1774903832930,-900.0,0.00046684,61]
[419122141,1774903832995,-900.0,0.00046684,61]
[419122142,1774903833062,-900.0,0.00046684,61]
[419122143,1774903833126,-900.0,0.00046684,61]
[419122144,1774903833192,-900.0,0.00046684,61]
[419122145,1774903833264,-900.0,0.00046684,61]
[419122146,1774903833333,-900.0,0.00046684,61]
[419122147,1774903833400,-900.0,0.00046684,61]
[419122148,1774903833468,-900.0,0.00046684,61]
[419122149,1774903833539,-900.0,0.00046684,61]
[419122150,1774903833611,-900.0,0.00046684,61]
[419122151,1774903833681,-900.0,0.00046684,61]
[419122152,1774903833748,-900.0,0.00046684,61]
[419122153,1774903833815,-900.0,0.00046684,61]
[419122154,1774903833888,-900.0,0.00046684,61]
[419122155,1774903833960,-900.0,0.00046684,61]
[419122156,1774903834029,-900.0,0.00046684,61]
[419122157,1774903834095,-900.0,0.00046684,61]
[419122158,1774903834168,-900.0,0.00046684,61]
[419122159,1774903834239,-900.0,0.00046684,61]
[419122160,1774903834307,-900.0,0.00046684,61]
[419122161,1774903834379,-900.0,0.00046684,61]
[419122162,1774903834450,-900.0,0.00046684,61]
[419122163,1774903834518,-900.0,0.00046684,61]
[419122164,1774903834588,-510.14530133,0.00046684,61]
[419122165,1774903834656,-500.0,0.00046684,90]
[419122166,1774903834722,-500.0,0.00046684,90]
[419122167,1774903834788,-500.0,0.00046684,90]
[419122168,1774903834853,-500.0,0.00046684,90]
[419122169,1774903834919,-500.0,0.00046684,90]
[419122170,1774903834986,-500.0,0.00046684,90]
[419122171,1774903835050,-500.0,0.00046684,90]
[419122172,1774903835113,-500.0,0.00046684,90]
[419122173,1774903835177,-500.0,0.00046684,90]
[419122174,1774903835242,-500.0,0.00046684,90]
[419122175,1774903835310,-553.28803536,0.00046684,90]
[419122176,1774903835377,-2320.82,0.00046684,90]
[419122177,1774903835443,-2320.82,0.00046684,90]
[419122178,1774903835508,-2320.82,0.00046684,90]
[419122179,1774903835575,-2320.82,0.00046684,90]
[419122180,1774903835643,-2320.82,0.00046684,90]
[419122181,1774903835708,-2320.82,0.00046684,90]
[419122182,1774903835772,-2320.82,0.00046684,90]
[419122183,1774903835836,-2320.82,0.00046684,90]
[419122184,1774903835902,-2320.82,0.00046684,90]
[419122185,1774903835964,-2320.82,0.00046684,90]
[419122186,1774903836028,-2320.82,0.00046684,90]
[419122188,1774903836092,-2320.82,0.00046684,90]
[419122189,1774903836157,-2320.82,0.00046684,90]
[419122190,1774903836223,-2320.82,0.00046684,90]
[419122191,1774903836292,-2320.82,0.00046684,90]
[419122192,1774903836360,-2320.82,0.00046684,90]
[419122193,1774903836427,-2320.82,0.00046684,90]
[419122194,1774903836494,-2320.82,0.00046684,90]
[419122195,1774903836564,-2320.82,0.00046684,90]
[419122196,1774903836633,-2320.82,0.00046684,90]
[419122197,1774903836701,-2320.82,0.00046684,90]
[419122198,1774903836769,-2320.82,0.00046684,90]
[419122199,1774903836832,-2320.82,0.00046684,90]
[419122200,1774903836894,-500.0,0.00046684,120]
[419122201,1774903836959,-2321.04926401,0.00046684,90]
[419122202,1774903837022,-544.31,0.00046684,120]
[419122203,1774903837085,-500.0,0.00046684,120]
[419122204,1774903837148,-500.0,0.00046684,120]
[419122205,1774903837213,-500.0,0.00046684,120]
[419122206,1774903837280,-500.0,0.00046684,120]
[419122207,1774903837347,-607.68,0.00046684,120]
[419122208,1774903837413,-500.0,0.00046684,120]
[419122209,1774903837479,-500.0,0.00046684,120]
[419122210,1774903837544,-500.0,0.00046684,120]
[419122211,1774903837610,-500.0,0.00046684,120]
[419122212,1774903837679,-175.62,0.00046684,120]
[419122213,1774903837746,-500.0,0.00046684,120]
[419122214,1774903837810,-500.0,0.00046684,120]
[419122215,1774903837875,-500.0,0.00046684,120]
[419122216,1774903837944,-500.0,0.00046684,120]
[419122217,1774903838012,-500.0,0.00046684,120]
[419122218,1774903838082,-592.96,0.00046684,120]
[419122219,1774903838152,-500.0,0.00046684,60]
[419122220,1774903838221,-500.0,0.00046684,60]
[419122222,1774903838292,-500.0,0.00046684,60]
[419122223,1774903838365,-500.0,0.00046684,60]
[419122224,1774903838438,-500.0,0.00046684,60]
[419122225,1774903838512,-500.0,0.00046684,60]
[419122226,1774903838584,-500.0,0.00046684,60]
[419122230,1774903838658,-500.0,0.00046684,120]
[419122239,1774903838731,-500.0,0.00046684,60]
[419122247,1774903838805,-500.0,0.00046684,120]
[419122255,1774903838870,-500.0,0.00046684,60]
[419122264,1774903838944,-500.0,0.00046684,60]
[419122273,1774903839020,-500.0,0.00046684,60]
[419122282,1774903839087,-417.87949049,0.00046684,60]
[419122290,1774903839153,-500.0,0.00046684,120]
[419122298,1774903839222,-475.71070273,0.00046684,120]
[419122307,1774903839292,-500.0,0.00046684,120]
[419122315,1774903839361,-500.0,0.00046684,120]
[419122323,1774903839432,-226.29739669,0.00046684,120]
[419122332,1774903839500,-500.0,0.00046684,120]
[419122340,1774903839569,-500.0,0.00046684,120]
[419122349,1774903839639,-500.0,0.00046684,120]
[419122357,1774903839712,-500.0,0.00046684,120]
[419122366,1774903839784,-500.0,0.00046684,120]
[419122374,1774903839857,-500.0,0.00046684,120]
[419122381,1774903839927,-500.0,0.00046684,30]
[419122383,1774903839999,-500.0,0.00046684,30]
[419122384,1774903840070,-500.0,0.00046684,30]
[419122385,1774903840142,-500.0,0.00046684,30]
[419122389,1774903840613,-593.34898003,0.00046684,30]
[419122390,1774903840688,-500.0,0.00046684,120]
[419122391,1774903840759,-500.0,0.00046684,120]
[419122392,1774903840829,-500.0,0.00046684,120]
[419122393,1774903840897,-500.0,0.00046684,120]
[419122394,1774903840972,-500.0,0.00046684,120]
[419122395,1774903841041,-500.0,0.00046684,120]
[419122396,1774903841108,-500.0,0.00046684,120]
[419122397,1774903841178,-500.0,0.00046684,120]
[419122398,1774903841249,-512.72,0.00046684,120]
[419122399,1774903841320,-500.0,0.00046684,120]
[419122400,1774903841393,-500.0,0.00046684,120]
[419122401,1774903841462,-500.0,0.00046684,120]
[419122402,1774903841533,-500.0,0.00046684,120]
[419122403,1774903841604,-500.0,0.00046684,120]
[419122404,1774903841681,-500.0,0.00046684,120]
[419122405,1774903841755,-500.0,0.00046684,120]
[419122406,1774903841824,-500.0,0.00046684,120]
[419122407,1774903841895,-500.0,0.00046684,120]
[419122408,1774903841964,-500.0,0.00046684,120]
[419122409,1774903842033,-162.20000388,0.00046684,120]
[419122410,1774903842102,-500.0,0.00046684,120]
[419122411,1774903842170,-500.0,0.00046684,120]
[419122412,1774903842241,-500.0,0.00046684,120]
[419122413,1774903842312,-500.0,0.00046684,120]
[419122414,1774903842384,-500.0,0.00046684,120]
[419122415,1774903842456,-500.0,0.00046684,120]
[419122416,1774903842526,-339.65,0.00046684,120]
[419122417,1774903842597,-500.0,0.00046684,120]
[419122418,1774903842669,-500.0,0.00046684,120]
[419122419,1774903842738,-500.0,0.00046684,120]
[419122420,1774903842803,-500.0,0.00046684,120]
[419122421,1774903842870,-587.12,0.00046684,120]
[419122422,1774903842937,-500.0,0.00046684,120]
[419122424,1774903843004,-500.0,0.00046684,120]
[419122426,1774903843075,-500.0,0.00046684,120]
[419122427,1774903843147,-500.0,0.00046684,120]
[419122428,1774903843216,-500.0,0.00046684,120]
[419122429,1774903843288,-500.0,0.00046684,120]
[419122433,1774903843362,-500.0,0.00046684,120]
[419122435,1774903843437,-500.0,0.00046684,120]
[419122436,1774903843509,-500.0,0.00046684,120]
[419122437,1774903843583,-179.12980842,0.00046684,120]
[419122438,1774903843657,-500.0,0.00046684,120]
[419122439,1774903843731,-500.0,0.00046684,120]
[419122440,1774903843803,-500.0,0.00046684,120]
[419122441,1774903843873,-500.0,0.00046684,120]
[419122442,1774903843945,-500.0,0.00046684,120]
[419122443,1774903844018,-500.0,0.00046684,120]
[419122444,1774903844092,-500.0,0.00046684,120]
[419122446,1774903844166,-500.0,0.00046684,120]
[419122450,1774903844237,-500.0,0.00046684,120]
[419122457,1774903844308,-500.0,0.00046684,120]
[419122463,1774903844379,-323.04,0.00046684,120]
[419122464,1774903844450,-500.0,0.00046684,30]
[419122465,1774903844521,-500.0,0.00046684,30]
[419122466,1774903844593,-500.0,0.00046684,30]
[419122467,1774903844665,-500.0,0.00046684,30]
[419122468,1774903844735,-500.0,0.00046684,30]
[419122469,1774903844804,-500.0,0.00046684,30]
[419122470,1774903844873,-500.0,0.00046684,30]
[419122471,1774903844942,-500.0,0.00046684,30]
[419122472,1774903845013,-187.29462026,0.00046684,30]
[419122473,1774903845085,-500.0,0.00046684,120]
[419122474,1774903845152,-500.0,0.00046684,120]
[419122475,1774903845225,-500.0,0.00046684,120]
[419122476,1774903845296,-500.0,0.00046684,120]
[419122477,1774903845364,-500.0,0.00046684,120]
[419122478,1774903845435,-500.0,0.00046684,120]
[419122479,1774903845506,-500.0,0.00046684,120]
[419122480,1774903845578,-500.0,0.00046684,120]
[419122481,1774903845650,-500.0,0.00046684,120]
[419122482,1774903845720,-500.0,0.00046684,120]
[419122483,1774903845787,-248.79062981,0.00046684,120]
[419122484,1774903845857,-500.0,0.00046684,120]
[419122485,1774903845923,-500.0,0.00046684,120]
[419122486,1774903845990,-500.0,0.00046684,120]
[419122487,1774903846057,-500.0,0.00046684,120]
[419122488,1774903846123,-500.0,0.00046684,120]
[419122489,1774903846192,-172.28157468,0.00046684,120]
[419122490,1774903846266,-500.0,0.00046684,120]
[419122491,1774903846339,-500.0,0.00046684,120]
[419122492,1774903846409,-500.0,0.00046684,120]
[419122493,1774903846477,-500.0,0.00046684,120]
[419122494,1774903846545,-513.43,0.00046684,120]
[419122495,1774903846614,-500.0,0.00046684,120]
[419122496,1774903846685,-500.0,0.00046684,120]
[419122500,1774903846753,-500.0,0.00046684,120]
[419122501,1774903846823,-500.0,0.00046684,120]
[419122503,1774903846892,-500.0,0.00046684,120]
[419122505,1774903846960,-500.0,0.00046684,120]
[419122506,1774903847026,-468.24726115,0.00046684,120]
[419122507,1774903847089,-500.0,0.00046684,120]
[419122508,1774903847156,-500.0,0.00046684,120]
[419122509,1774903847224,-500.0,0.00046684,120]
[419122510,1774903847716,-500.0,0.00046684,120]
[419122511,1774903847785,-500.0,0.00046684,120]
[419122512,1774903847852,-500.0,0.00046684,120]
[419122513,1774903847918,-500.0,0.00046684,120]
[419122514,1774903847987,-500.0,0.00046684,120]
[419122515,1774903848051,-500.0,0.00046684,120]
[419122516,1774903848116,-500.0,0.00046684,120]
[419122517,1774903848184,-500.0,0.00046684,120]
[419122518,1774903848256,-500.0,0.00046684,120]
[419122519,1774903848327,-639.44,0.00046684,120]
[419122520,1774903848397,-500.0,0.00046684,120]
[419122521,1774903848466,-500.0,0.00046684,120]
[419122522,1774903848536,-500.0,0.00046684,120]
[419122523,1774903848610,-500.0,0.00046684,120]
[419122524,1774903848679,-500.0,0.00046684,120]
[419122525,1774903848749,-500.0,0.00046684,120]
[419122526,1774903848815,-500.0,0.00046684,120]
[419122527,1774903848883,-500.0,0.00046684,120]
[419122528,1774903848951,-349.47141747,0.00046684,120]
[419122529,1774903849019,-500.0,0.00046684,120]
[419122530,1774903849086,-500.0,0.00046684,120]
[419122531,1774903849152,-500.0,0.00046684,120]
[419122532,1774903849219,-500.0,0.00046684,120]
[419122533,1774903849289,-500.0,0.00046684,120]
[419122534,1774903849360,-271.98,0.00046684,120]
[419122535,1774903849429,-500.0,0.00046684,120]
[419122536,1774903849497,-500.0,0.00046684,120]
[419122537,1774903849567,-500.0,0.00046684,120]
[419122538,1774903849639,-439.39946539,0.00046684,120]
[419122539,1774903849716,-500.0,0.00046684,120]
[419122540,1774903849790,-645.28554588,0.00046684,120]
[419122541,1774903849859,-500.0,0.00046684,30]
[419122542,1774903849926,-500.0,0.00046684,30]
[419122543,1774903849998,-500.0,0.00046684,30]
[419122544,1774903850065,-500.0,0.00046684,120]
[419122545,1774903850132,-637.09423279,0.00046684,30]
[419122546,1774903850201,-556.29186587,0.00046684,120]
[419122547,1774903850273,-500.0,0.00046684,120]
[419122548,1774903850344,-500.0,0.00046684,120]
[419122549,1774903850414,-500.0,0.00046684,120]
[419122550,1774903850483,-500.0,0.00046684,120]
[419122551,1774903850552,-500.0,0.00046684,120]
[419122552,1774903850622,-384.35,0.00046684,120]
[419122553,1774903850690,-500.0,0.00046684,120]
[419122554,1774903850758,-500.0,0.00046684,120]
[419122555,1774903850827,-500.0,0.00046684,120]
[419122556,1774903850897,-500.0,0.00046684,120]
[419122557,1774903850970,-500.0,0.00046684,120]
[419122558,1774903851039,-500.0,0.00046684,120]
[419122559,1774903851109,-500.0,0.00046684,120]
[419122560,1774903851182,-269.08,0.00046684,120]
[419122561,1774903851255,-500.0,0.00046684,120]
[419122562,1774903851327,-500.0,0.00046684,120]
[419122563,1774903851397,-500.0,0.00046684,120]
[419122564,1774903851466,-500.0,0.00046684,120]
[419122565,1774903851536,-500.0,0.00046684,120]
[419122566,1774903851606,-500.0,0.00046684,120]
[419122567,1774903851674,-500.0,0.00046684,120]
[419122568,1774903851743,-500.0,0.00046684,120]
[419122569,1774903851813,-500.0,0.00046684,120]
[419122570,1774903851879,-500.0,0.00046684,120]
[419122571,1774903851943,-500.0,0.00046684,120]
[419122572,1774903852007,-500.0,0.00046684,120]
[419122573,1774903852073,-500.0,0.00046684,120]
[419122574,1774903852138,-500.0,0.00046684,120]
[419122575,1774903852205,-500.0,0.00046684,120]
[419122576,1774903852274,-500.0,0.00046684,120]
[419122577,1774903852345,-500.0,0.00046684,120]
[419122578,1774903852414,-500.0,0.00046684,120]
[419122579,1774903852485,-500.0,0.00046684,120]
[419122580,1774903852557,-584.92616601,0.00046684,120]
[419122581,1774903852628,-320.64,0.00046684,120]
[419122582,1774903852699,-500.0,0.00046684,120]
[419122583,1774903852766,-500.0,0.00046684,120]
[419122584,1774903852832,-500.0,0.00046684,120]
[419122585,1774903852902,-500.0,0.00046684,120]
[419122586,1774903852972,-500.0,0.00046684,120]
[419122587,1774903853041,-500.0,0.00046684,120]
[419122588,1774903853105,-498.4,0.00046684,120]
[419122589,1774903853280,-208.24427222,0.00046684,120]
[419122590,1774903853351,-306.26190781,0.00046684,120]
[419122591,1774903853422,-500.0,0.00046684,120]
[419122592,1774903853492,-500.0,0.00046684,120]
[419122593,1774903853564,-500.0,0.00046684,120]
[419122594,1774903853635,-500.0,0.00046684,120]
[419122595,1774903853701,-500.0,0.00046684,120]
[419122596,1774903853764,-552.89212473,0.00046684,120]
[419122597,1774903853831,-500.0,0.00046684,120]
[419122598,1774903853900,-163.06883349,0.00046684,120]
[419122599,1774903853967,-274.67679192,0.00046684,120]
[419122600,1774903854035,-277.67590827,0.00046684,120]
[419122601,1774903854105,-644.70735129,0.00046684,120]
[419122602,1774903854173,-625.34461267,0.00046684,120]
[419122603,1774903854244,-206.74645043,0.00046684,120]
[419122604,1774903854317,-372.14115737,0.00046684,120]
[419122605,1774903854388,-177.47396356,0.00046684,120]
[419122606,1774903854456,-500.0,0.00046684,120]
[419122607,1774903854527,-337.68661052,0.00046684,120]